Cogmind - Beta 14 @@@ ROGUE MODE // 2025.01.16 @ 10:15:21 Player: K.Ioz Result: Destroyed by D-53 Grenadier with Mini Grenade Launcher Performance ------------- Evolutions (0) 0 Regions Visited (4) 800 Robots Destroyed (31) 155 Value Destroyed (628) 628 Prototype IDs (26) 520 Alien Tech Used (0) 0 Bonus (212) 212 TOTAL SCORE: 2315 Bonus ------- Aligned with FarCom 300 Friendly Fire -88 Cogmind --------- Core Integrity 0/250 Matter 265/300 Energy 144/160 System Corruption 0% Temperature Cool (0) Movement Treading (160) Location -9/Mines Parts ------- > --- POWER (1) -------- Light Nuclear Core > --- PROPULSION (2) --- Light Treads Light Treads > --- UTILITY (2) ------ Large Storage Unit Weapon Shielding > --- WEAPON (2) ------- Subdweller Machine Gun Grenade Launcher > --- INVENTORY (15) --- Ion Engine Light Ion Engine Light Treads Improved Heat Sink High-capacity Matter Pod (200) Structural Scanner Signal Interpreter Beam Cannon Assault Rifle Heavy Assault Rifle AWS/Gauss Light Cannon Grenade Launcher Mining Claw Peak State ------------ > --- POWER ------------ Light Nuclear Core > --- PROPULSION ------- Light Treads Light Treads > --- UTILITY ---------- Large Storage Unit Weapon Shielding > --- WEAPON ----------- Heavy Assault Rifle Subdweller Machine Gun > --- INVENTORY -------- Ion Engine Light Ion Engine Light Treads Improved Heat Sink High-capacity Matter Pod Structural Scanner Signal Interpreter Beam Cannon Assault Rifle AWS/Gauss Light Cannon Grenade Launcher Grenade Launcher Mining Claw [Rating: 14] Favorites ----------- Power Ion Engine Engine Ion Engine Power Core Light Nuclear Core Propulsion Light Treads Treads Light Treads Leg Aluminum Leg Utility Large Storage Unit Storage Large Storage Unit Processor Targeting Computer Protection Weapon Shielding Weapon Light Assault Rifle Energy Gun EM Pulse Gun Energy Cannon Beam Cannon Ballistic Gun Light Assault Rifle Ballistic Cannon Light Cannon Launcher Grenade Launcher Build | -11 -10 -10 -10 -9 ------- Run | Yrd Mat Min Exi Min Slots Evolved . | . . . . . Power . | . . . . . Propulsion . | . . . . . Utility . | . . . . . Weapon . | . . . . . Parts Attached 40 | 6 20 12 . 2 Power 3 | 1 1 1 . . Engine 2 | 1 1 . . . Core 1 | . . 1 . . Reactor . | . . . . . Propulsion 7 | 2 . 5 . . Treads 5 | 2 . 3 . . Leg 2 | . . 2 . . Wheel . | . . . . . Hover . | . . . . . Flight . | . . . . . Utility 5 | 1 3 1 . . Device . | . . . . . Storage 3 | 1 2 . . . Processor 1 | . 1 . . . Hackware . | . . . . . Protection 1 | . . 1 . . Artifact . | . . . . . Weapon 25 | 2 16 5 . 2 Energy Gun 9 | 1 7 1 . . Energy Cannon 1 | . . 1 . . Ballistic Gun 7 | 1 3 2 . 1 Ballistic Cannon 2 | . 2 . . . Launcher 6 | . 4 1 . 1 Special Weapon . | . . . . . Impact Weapon . | . . . . . Slashing Weapon . | . . . . . Piercing Weapon . | . . . . . Special Melee Weapon . | . . . . . Unidentified Prototypes . | . . . . . Parts Lost 6 | . 3 3 . . Power 1 | . 1 . . . Propulsion 2 | . . 2 . . Utility . | . . . . . Weapon 3 | . 2 1 . . Highest Loss Streak 3 | . 1 3 . . To Critical Strikes . | . . . . . Average Slot Usage (%) 98 | . 98 98 100 100 Engine 11 | . 14 14 . . Core 2 | . . . 14 14 Treads 27 | . 28 18 28 28 Storage 14 | . 14 14 14 14 Processor 10 | . 12 13 . . Protection 2 | . . . 14 14 Energy Gun 6 | . 9 . . . Energy Cannon 4 | . . 12 14 11 Ballistic Gun 10 | . 8 14 14 16 Ballistic Cannon 6 | . 9 . . . Peak Build Rating 14 | 6 8 11 13 14 Average Rating 8 | 4 7 8 11 13 On Entrance 7 | . 6 8 11 13 Naked Turns . | . . . . . Heaviest Build 33 | 12 31 32 32 33 Greatest Support 40 | 40 40 40 40 40 Greatest Overweight (x) 9 | . . 9 1 . Average Overweight (x) . | . . . . . Largest Inventory Capacity 15 | 8 15 15 15 15 Average Capacity 13 | 6 13 15 15 15 Most Carried 15 | 4 15 15 15 15 Average Carried 12 | 2 11 14 14 15 Final Capacity 15 | 8 15 15 15 15 Final Carried 15 | 4 15 15 15 15 Class Distribution -------------------- 81% | Mutant 18% | Scavenger-Mutant Dominant Class ---------------- Mutant | -10/Materials Mutant | -10/Mines Scavenger-Mutant | -10/Exiles Scavenger-Mutant | -9/Mines Resources | -11 -10 -10 -10 -9 ----------- Run | Yrd Mat Min Exi Min Matter Collected 860 | 202 503 155 . . Remotely . | . . . . . Salvage Created 731 | . 532 199 . . Parts 58 | . 46 12 . . Haulers Intercepted 2 | . 2 . . . Recyclers Shooed . | . . . . . Parts Field Recycled . | . . . . . Retrieved Matter . | . . . . . Parts Self-Destructed . | . . . . . Prevented . | . . . . . Kills | -11 -10 -10 -10 -9 ------- Run | Yrd Mat Min Exi Min Combat Hostiles Destroyed 19 | . 12 7 . . Guns 3 | . 1 2 . . Cannons 5 | . 3 2 . . AOE 11 | . 8 3 . . Classes Destroyed 9 | . 9 . . . Worker 1 | . 1 . . . Builder 2 | . 2 . . . Hauler 2 | . 2 . . . Recycler 2 | . 2 . . . Operator 2 | . 2 . . . Watcher 3 | . 3 . . . Swarmer 9 | . 6 3 . . Grunt 7 | . 3 4 . . Subdweller 3 | . 3 . . . Best Kill Streak 5 | . 5 3 . . Combat Bots Only 3 | . 3 3 . . Max Kills in Single Turn 3 | . 3 2 . . Gunslinging . | . . . . . Exploded 2 | . 2 2 . . Melee . | . . . . . Uniques/NPCs Destroyed . | . . . . . Combat | -11 -10 -10 -10 -9 -------- Run | Yrd Mat Min Exi Min Hostile Shots Fired 76 | . 37 38 . 1 Missed 19 | . 13 6 . . Damage Taken 1182 | . 673 467 . 42 Core 254 | . 151 82 . 21 Absorbed by Shields . | . . . . . Redirected to Shielding 6 | . . . . 6 Regen/Repaired (Parts) 39 | . 39 . . . Core Remaining (%) 100 | 100 . . . . Volleys Fired 66 | . 39 26 . 1 Largest 2 | . 2 2 . 2 Hottest 83 | . 80 83 . 53 Shots Fired 123 | . 77 44 . 2 Gun 82 | . 48 32 . 2 Cannon 31 | . 21 10 . . Launcher 10 | . 8 2 . . Special . | . . . . . Kinetic 66 | . 38 26 . 2 Thermal 18 | . 8 10 . . Explosive 10 | . 8 2 . . Electromagnetic 29 | . 23 6 . . Robot Hit Streak 13 | . 13 7 . 9 Robot Miss Streak 2 | . 2 2 . . Penetration Max . | . . . . . Secondary Targets . | . . . . . Shots Hit Robots 85 | . 51 32 . 2 Core Hits 40 | . 28 11 . 1 Critical Kills . | . . . . . Critical Parts Destroyed . | . . . . . Critical Strikes 2 | . 2 . . . Blast 1 | . 1 . . . Corrupt 1 | . 1 . . . Melee Attacks . | . . . . . Impact . | . . . . . Slashing . | . . . . . Piercing . | . . . . . Sneak Attacks . | . . . . . Combat Hostiles . | . . . . . Follow-up Attacks . | . . . . . Damage Inflicted 2160 | . 1630 492 . 38 Guns 593 | . 330 225 . 38 Cannons 391 | . 284 107 . . Explosions 1176 | . 1016 160 . . Melee . | . . . . . Ramming . | . . . . . Kinetic 599 | . 363 198 . 38 Thermal 458 | . 351 107 . . Explosive 875 | . 715 160 . . Electromagnetic 228 | . 201 27 . . Impact . | . . . . . Slashing . | . . . . . Piercing . | . . . . . Highest Corruption . | . . . . . Average Corruption . | . . . . . Corruption Purged . | . . . . . Corruption Blocked . | . . . . . Overload Shots . | . . . . . Overflow Damage 176 | . 176 . . . Projectiles 2 | . 2 . . . Explosions 174 | . 174 . . . Melee . | . . . . . Knockbacks . | . . . . . Impact . | . . . . . Kinetic . | . . . . . Secondary . | . . . . . Self-Inflicted Damage 309 | . 287 22 . . Shots 7 | . 5 2 . . Rammed . | . . . . . Targets Rammed . | . . . . . Kicked . | . . . . . Crushed . | . . . . . Highest Temperature 332 | . 91 332 . . Average Temperature 80 | . 23 154 . . Received Heat Transfer 306 | . 42 264 . . Effects 1 | . . 1 . . Damage (minor) 1 | . . 1 . . Siege Activations . | . . . . . Robots Corrupted . | . . . . . Combat Hostiles . | . . . . . Parts Fried 1 | . 1 . . . Impact Corruptions . | . . . . . Robots Melted . | . . . . . Combat Hostiles . | . . . . . Parts Melted . | . . . . . Heat Transferred 547 | . 325 222 . . Parts Sabotaged . | . . . . . Parts Stolen . | . . . . . Parts Stripped . | . . . . . Power Chain Reactions 2 | . 2 . . . Alert | -11 -10 -10 -10 -9 ------- Run | Yrd Mat Min Exi Min Peak Influence 329 | . 329 207 . . Initial 37 | . . 37 . . Average 135 | . 140 168 . . Maximum Alert Level 1 | . 1 1 . . Low Security (%) 76 | 100 76 66 . 100 Level 1 23 | . 23 33 . . Level 2 . | . . . . . Level 3 . | . . . . . Level 4 . | . . . . . Level 5 . | . . . . . High Security . | . . . . . Max Security . | . . . . . Squads Dispatched 1 | . 1 . . . Investigation . | . . . . . Extermination . | . . . . . Reinforcement 1 | . 1 . . . Assault . | . . . . . Garrison . | . . . . . Intercept . | . . . . . Searches Triggered . | . . . . . Construction Impeded . | . . . . . Haulers Reinforced . | . . . . . Active Scanning Responses . | . . . . . Cargo Convoy Interrupts . | . . . . . Stealth | -11 -10 -10 -10 -9 --------- Run | Yrd Mat Min Exi Min Distress Signals . | . . . . . Communications Jammed . | . . . . . Distress Signals . | . . . . . Times Spotted 39 | . 26 7 . 6 Peak Tracking Total 9 | . 3 3 . 9 Tactical Retreats . | . . . . . Traps | -11 -10 -10 -10 -9 ------- Run | Yrd Mat Min Exi Min Traps Triggered . | . . . . . Indirectly . | . . . . . Trap Hack Attempts . | . . . . . Triggered . | . . . . . Disarmed . | . . . . . Reprogrammed . | . . . . . Reused . | . . . . . Traps Extracted . | . . . . . Installed . | . . . . . Triggered . | . . . . . Machines | -11 -10 -10 -10 -9 ---------- Run | Yrd Mat Min Exi Min Machines Disabled 5 | . 5 . . . Max in Single Turn 2 | . 2 . . . Machines Repaired . | . . . . . Machines Dismantled . | . . . . . Machines Sabotaged . | . . . . . Overloaded Fab Kills . | . . . . . Hacking | -11 -10 -10 -10 -9 --------- Run | Yrd Mat Min Exi Min Machines Accessed 10 | . 9 . 1 . Terminals 6 | . 6 . . . Fabricators . | . . . . . Repair Stations 1 | . 1 . . . Recycling Units 2 | . 2 . . . Scanalyzers . | . . . . . Garrison Access . | . . . . . Total Hacks 29 | . 28 . 1 . Successful 22 | . 21 . 1 . Failed 7 | . 7 . . . Catastrophic 2 | . 2 . . . Database Lockouts . | . . . . . Manual 20 | . 15 . 5 . Terminals 21 | . 21 . . . Fabricators . | . . . . . Repair Stations 2 | . 2 . . . Recycling Units 5 | . 5 . . . Scanalyzers . | . . . . . Garrison Access . | . . . . . Terminal Hacks 5 | . 4 . 1 . Robot Analysis 1 | . 1 . . . Prototype ID Bank 2 | . 2 . . . Patrol Status 1 | . 1 . . . Derelict Proto ID Bank 1 | . . . 1 . Fabricator Hacks . | . . . . . Repair Station Hacks 2 | . 2 . . . Scan Component 1 | . 1 . . . Repair 1 | . 1 . . . Recycling Unit Hacks 4 | . 4 . . . Retrieve Matter 2 | . 2 . . . Retrieve Components 2 | . 2 . . . Scanalyzer . | . . . . . Garrison Access Hacks . | . . . . . Unauthorized Hacks 11 | . 11 . . . Terminals 11 | . 11 . . . Assimilate 2 | . 2 . . . Botnet 3 | . 3 . . . Operators 1 | . 1 . . . Skim 5 | . 5 . . . Fabricators . | . . . . . Repair Stations . | . . . . . Recycling Units . | . . . . . Scanalyzers . | . . . . . Garrison Access . | . . . . . Data Cores Recovered . | . . . . . Used . | . . . . . Hacking Detections 6 | . 6 . . . Full Trace Events . | . . . . . Feedback Events . | . . . . . Feedback Blocked . | . . . . . Robot Schematics Acquired . | . . . . . Robots Built . | . . . . . Authchips . | . . . . . Time . | . . . . . Total Robot Build Rating . | . . . . . Part Schematics Acquired . | . . . . . Parts Built . | . . . . . Authchips . | . . . . . Time . | . . . . . Total Part Build Rating . | . . . . . Parts Repaired 1 | . 1 . . . Time 26 | . 26 . . . Parts Recycled . | . . . . . Recycled Matter . | . . . . . Retrieved Matter 173 | . 173 . . . Retrieved Components 19 | . 19 . . . Parts Scanalyzed . | . . . . . Part Schematics Acquired . | . . . . . Parts Damaged . | . . . . . Bothacking | -11 -10 -10 -10 -9 ------------ Run | Yrd Mat Min Exi Min Used RIF Installer . | . . . . . Robots Hacked . | . . . . . Non-combat . | . . . . . Combat . | . . . . . Robot Hacks Applied . | . . . . . Relay Couplers Released . | . . . . . Fabnet Peak Effective % . | . . . . . Robots Rewired . | . . . . . Allies Hacked . | . . . . . Hacks Repelled . | . . . . . Allies | -11 -10 -10 -10 -9 -------- Run | Yrd Mat Min Exi Min Total Allies 3 | . 2 . . 1 Largest Group 2 | . 2 1 1 2 Highest-Rated Group 41 | . 20 10 10 41 Highest-Rated Ally 31 | . 10 10 10 31 Total Orders 2 | . 2 . . . STAY 1 | . 1 . . . FOLLOW 1 | . 1 . . . Ally Attacks 1 | . . . . 1 Total Damage . | . . . . . Kills . | . . . . . Allies Corrupted . | . . . . . Allies Melted . | . . . . . Intel | -11 -10 -10 -10 -9 ------- Run | Yrd Mat Min Exi Min Robot Analysis Total 1 | . 1 . . . Derelict Logs Recovered . | . . . . . Drone Launches . | . . . . . Drone Recoveries . | . . . . . Exploration | -11 -10 -10 -10 -9 ------------- Run | Yrd Mat Min Exi Min Turns Passed 3502 | 118 2364 374 588 58 Spaces Moved 1886 | 70 1316 140 328 32 Core 6 | 5 . 1 . . Treads 1828 | 65 1316 87 328 32 Legs 52 | . . 52 . . Wheels . | . . . . . Hover . | . . . . . Flight . | . . . . . Fastest Speed 50 | 50 160 160 160 160 Average Speed 161 | 152 160 174 163 160 Slowest Speed 500 | 160 160 500 240 160 Overloaded Moves . | . . . . . Propulsion Burnouts . | . . . . . Robots Hopped . | . . . . . Cave-ins Triggered . | . . . . . Exploration Rate (%) 41 | 5 98 26 63 13 Regions Visited 4 Branch Regions 3 Pre-discovered Areas 1 | . 1 . . . Known Exits Taken 1 | . . 1 . . Unknown Exits Taken 3 | 1 1 . 1 . Scrap Searched 1 | . . 1 . . Spaces Dug 7 | . 7 . . . Terrain Destroyed 159 | . 143 16 . . Melee . | . . . . . Projectile . | . . . . . AOE 159 | . 143 16 . . Terrain Rammed . | . . . . . Walls Destroyed . | . . . . . Machines Disabled . | . . . . . Actions | -11 -10 -10 -10 -9 --------- Run | Yrd Mat Min Exi Min Total 2228 | 79 1499 233 381 36 Wait 184 | . 91 41 51 1 Move 1882 | 69 1315 139 327 32 Hop . | . . . . . Pick Up 35 | 4 23 7 1 . Fast Attach 12 | 6 3 3 . . Attach 10 | . 4 6 . . Detach 1 | . . 1 . . Swap 18 | . 13 3 . 2 Drop 20 | . 11 7 2 . Fire 66 | . 39 26 . 1 Melee . | . . . . . Ram . | . . . . . Kick . | . . . . . Crush . | . . . . . Escape Stasis . | . . . . . Rewire . | . . . . . Trap . | . . . . . Miscellaneous . | . . . . . Route ------- -11/Scrapyard -10/Materials (discovered 6 exits: *Mat x3 / [*Min x2] / Sub) -10/Mines (discovered 3 exits: Mat / *Exi / Sub) -10/Exiles (discovered 2 exits: [*Min x2]) -9/Mines (discovered 1 exit: [*Mat]) History --------- Turn | Location | Event 2 | -11/Scrapyard | Met Revision 17 5 | -11/Scrapyard | Discovered new exit (range 16) 119 | -11/Scrapyard | Entered Materials 256 | -10/Materials | Discovered new exit (range 7) 343 | -10/Materials | Build established: Mutant 493 | -10/Materials | Discovered new exit (range 3) 519 | -10/Materials | Discovered new exit (range 16) 666 | -10/Materials | Discovered new exit (range 11) 919 | -10/Materials | Derelicts attacked the area 1246 | -10/Materials | Core integrity fell below 50% 1263 | -10/Materials | Discovered new exit (range 12) 1292 | -10/Materials | Learned Storage trap positions 1361 | -10/Materials | Learned 2 Storage zone layouts 1421 | -10/Materials | Learned location of 2 exits from Mines 1471 | -10/Materials | Identified exit to Subcaves 1535 | -10/Materials | Identified exit to Materials 1552 | -10/Materials | Learned location of 2 exits from Subcaves 1666 | -10/Materials | Learned location of Subcaves (-10) 1723 | -10/Materials | Learned Materials emergency access door positions 2080 | -10/Materials | Repaired Hcp. Matter Pod 2483 | -10/Materials | Entered Mines 2483 | -10/Mines | Accompanied by 1 ally 2485 | -10/Mines | Identified exit to Exiles 2523 | -10/Mines | Core integrity fell below 20% 2561 | -10/Mines | Lost 3 parts (2n1w) 2649 | -10/Mines | Joined a pair of Derelicts in attacking an 0b10 outpost 2760 | -10/Mines | Deemed a non-threat by the Exiles lab entrance 2857 | -10/Mines | Entered Exiles 2857 | -10/Exiles | Accompanied by 1 ally 2881 | -10/Exiles | Discovered new exit (range 15) 2915 | -10/Exiles | Met 8R-AWN 2941 | -10/Exiles | Met EX-HEX 2998 | -10/Exiles | Met EX-BIN 3159 | -10/Exiles | Build established: Scavenger-Mutant 3166 | -10/Exiles | Aligned with FarCom system 3168 | -10/Exiles | Given EX-Vault access code 3206 | -10/Exiles | Opened EX-Vault 3214 | -10/Exiles | Found AWS/Gauss 3248 | -10/Exiles | Warned to stay clear of 0b10 Research branches 3273 | -10/Exiles | Exiles lab attacked by MAIN.C 3370 | -10/Exiles | Discovered new exit (range 14) 3445 | -10/Exiles | Left Exiles lab with AWS/Gauss 3445 | -10/Exiles | Entered Mines 3445 | -9/Mines | Accompanied by 1 ally 3448 | -9/Mines | Received a Mining Laser from a helpful Derelict 3494 | -9/Mines | Assembled infested the area 3498 | -9/Mines | Discovered new exit (range 16) 3499 | -9/Mines | Assisted by a Guerilla fighting off Assembled 3500 | -9/Mines | Met a Derelict bent on vengeance 3503 | -9/Mines | Destroyed by D-53 Grenadier with Mini Grenade Launcher Last Messages --------------- 03494_ R-06 Scavenger collects Wheel. 03497_ 9N-NOA(h): "I'll hold them off! Go on ahead or try to find another way!" 03497_ D-53 Grenadier suffers critical hit (Destroy). 03498_ EXIT=FOUND 03498_ R-06 Scavenger collects Imp. Terrain Scanner. 03499_ A derelict emerges from the shadows: "You need to get out of here! I've been tracking a group of Assembled to figure out where they're coming from, and they're closing on this area, come on!" 03499_ T-07 Excavator destroyed. 03500_ E0-9RL(g): "TASTE MY VENGEANCE!" 03500_ HV Slug penetrates D-53 Grenadier. 03500_ D-53 Grenadier suffers critical hit (Destroy). 03501_ E0-9RL(g) destroyed. 03502_ The unstable cave ceiling collapses. Map ----- +----------------------------------------------------+ | ?????????????????????????????????? | | ?????????????????????????????????? | | ?????????????????????????????????? | | ?????????????????????????????????? | | ?????????????????????????????????? | | ?????????????????????????????????? | | ?????????????????????????????????? | | ?????????????????????????????????? | | ?????????????????????????????????? | | ?????????????????????????????????? | | ??????? < ?????????????????????? | | ????? % #????????????????????? | | ???? #????????????????????? | | ????# ##???????????????????? | | ????# #???????????????????? | | ????# #???????????????????? | | ????# dd # ???????????????????? | | ????# % ##??????????????????? | | ????# ???????????????????? | | ????? ???????????????????? | | ?????# ????????????????????? | | ?????# #????????????????????? | | ?????# % #????????????????????? | | ?????# #????????????????????? | | ?????# #?????????????????????? | | ?????##h @r######## ?????????? | | ?????# =%* #???????????? | | ?????# g =aa a #???????????? | | ?????# ########????????????? | | ?????## z ##???????????????????? | | ??????# ###????????????????????? | | ??????# o##??????????????????????? | | ??????# #???????????????????????? | | ??????# #???????????????????????? | | ??????# #???????????????????????? | | ??????# ######??????????????????? | | ??????# ##?????????????????? | | ??????# #?????????????????? | | ??????#### #?????????????????? | | ????????## ##?????????????????? | | ??????### ##??????????????????? | | ?????## #???????????????????? | | ?????# #???????????????????? | | ????## ##???????????????????? | | ????# ##????????????????????? | | ????# | ##?????????????????????? | | ????# ###??????????????????????? | | ???## ##????????????????????????? | | ??## ##?????????????????????????? | | ??# ##??????????????????????????? | +----------------------------------------------------+ Best States ------------- Heat Dissipation 25 Energy Generation 14 Energy Capacity 250 Matter Stores 300 Matter Capacity 300 Sight Range 16 Terrain Scan Density 10 Weapon Shielding 33 Evasion (%) 40 Targeting Accuracy 5 Recoil Reduction 2 Item Schematics ----------------- None Robot Schematics ------------------ None Fabricated ------------ Nothing Alien Tech Used ----------------- None Achievements -------------- None Challenges ------------ None Game ------ Seed PhaseCommGenerator Manual? 0 Play Time 00:38:56 Cumulative 265.5 hours Start 2025.01.16 @ 09:13:01 End 2025.01.16 @ 10:15:21 Sessions 1 Manual Loads 0 Difficulty Rogue Special Mode None Game No. 176 Rogue 137 Adventurer 6 Explorer 33 Win Type - Total 6 Types 5/0/1/0/0/0/0/0/0 Lore% 41 Gallery% 67 Achievement% 65 Wizard Run 0 Options --------- Layout 2 ASCII 1 Keyboard 1 Movement Vi Keybinds 0 Fullscreen 1 Font 16/T_Terminus Map View 53x45 Zoom Use 0% Tactical HUD 1 Map Filters NONE Filters LOW_CONTRAST(47,30,31) Steam 1 RUN: bbc4379c-6ba8-4f25-b80f-450b0e23fe02